fUSD/lending_fUSD_20250911
["ID","MTS","AMOUNT","RATE_DAILY","PERIOD"]
[384938005,1757628674324,-67.31460521,0.00025832,2]
[384938006,1757628676636,-505.46,0.00025832,2]
[384938007,1757628683726,-54.55109857,0.00025832,2]
[384938008,1757628683778,-1280.14780286,0.00026658,2]
[384938009,1757628691286,-500.0,0.00026231,2]
[384938010,1757628691331,-145.78,0.00026231,2]
[384938011,1757628698298,-45.78,0.00026231,2]
[384938012,1757628698327,-308.44,0.00026231,2]
[384938013,1757628705379,-11.34,0.00026231,2]
[384938014,1757628705409,-488.66,0.00026231,2]
[384938015,1757628712588,-400.0,0.00026231,2]
[384938016,1757628720264,-100.0,0.00026231,2]
[384938017,1757628720298,-255.67,0.00026231,2]
[384938018,1757628720341,-244.33,0.00026231,2]
[384938019,1757628727323,-86.33,0.00026231,2]
[384938020,1757628727351,-413.67,0.00026231,2]
[384938021,1757628734680,-400.0,0.00026231,2]
[384938022,1757628741984,-652.48,0.00026438,7]
[384938023,1757628747458,-150.43653599,0.00026231,2]
[384938024,1757628747480,-16.34978501,0.00026438,7]
[384938025,1757628749051,-131.17021499,0.00026438,7]
[384938026,1757628749078,-22.37164975,0.00026561,2]
[384938027,1757628749112,-161.74180221,0.00026561,2]
[384938028,1757628749177,-166.786321,0.00026658,2]
[384938029,1757628753663,-294.583679,0.00026658,2]
[384938030,1757628756084,-400.0,0.00026658,2]
[384938031,1757628764104,-358.48219714,0.00026658,2]
[384938032,1757628764148,-1017.58560572,0.00026658,2]
[384938071,1757628771683,-49.06390572,0.00026658,2]
[384938072,1757628771988,-301.87218856,0.00026658,2]
[384938073,1757628779419,-194.53,0.00026632,2]
[384938074,1757628779469,-10.94,0.00026632,2]
[384938076,1757628783076,195.0,0.00029295,120]
[384938077,1757628784342,161.37,0.00029324,120]
[384938078,1757628785890,300.0,0.00029324,120]
[384938079,1757628786853,-400.0,0.00026613,2]
[384938081,1757628789605,274.2,0.00026602,120]
[384938082,1757628789811,274.2,0.00029927,120]
[384938083,1757628794954,-400.0,0.00026613,2]
[384938085,1757628802062,-400.0,0.000249,2]
[384938087,1757628809614,-1008.94,0.000249,2]
[384938089,1757628816659,-450.51,0.000249,2]
[384938091,1757628823776,-183.52028538,0.000249,2]
[384938092,1757628823815,-32.95942924,0.00026613,2]
[384938093,1757628830799,-400.0,0.00026613,2]
[384938096,1757628838371,-400.0,0.00026613,2]
[384938099,1757628845478,-1280.34,0.00026613,2]
[384938101,1757628851710,-198.81249098,0.00026613,2]
[384938102,1757628853109,-400.0,0.00026613,2]
[384938104,1757628860558,-503.71,0.00026613,2]
[384938106,1757628867619,-400.0,0.00026613,2]
[384938110,1757628874669,-400.0,0.00026613,2]
[384938112,1757628881725,-438.77786565,0.00026613,2]
[384938113,1757628888755,-400.0,0.00026613,2]
[384938116,1757628896158,-60.35021413,0.00026613,2]
[384938117,1757628896193,-706.90957174,0.00026658,2]
[384938118,1757628903847,-150.0,0.00026577,2]
[384938119,1757628903882,-293.09042826,0.00026658,2]
[384938120,1757628903909,-150.0,0.00026689,2]
[384938121,1757628903930,-293.09042826,0.00026689,2]
[384938122,1757628903964,-756.90957174,0.00026689,2]
[384938123,1757628903975,-1.64957174,0.00026689,2]
[384938126,1757628910891,-101.64957174,0.00026689,2]
[384938127,1757628910903,-196.70085652,0.00026689,2]
[384938128,1757628910912,-101.64957174,0.0002669,2]
[384938130,1757628918346,-400.0,0.0002669,2]
[384938133,1757628925418,-400.0,0.0002669,2]
[384938148,1757628932509,-400.0,0.0002669,2]
[384938150,1757628940092,-1173.42,0.0002669,2]
[384938152,1757628947262,-400.0,0.0002669,2]
[384938156,1757628954325,-400.0,0.0002669,2]
[384938163,1757628961599,-400.0,0.0002669,2]
[384938171,1757628968638,-100.0,0.00026689,2]
[384938172,1757628968659,-200.0,0.00026689,2]
[384938173,1757628968668,-100.0,0.0002669,2]
[384938176,1757628975750,-1363.53,0.0002669,2]
[384938179,1757628983722,-409.54022821,0.000249,2]
[384938182,1757628991000,-1208.37,0.000249,2]
[384938185,1757629002866,-43.03895242,0.000249,2]
[384938186,1757629002900,-313.92209516,0.000249,2]
[384938187,1757629002909,-43.03895242,0.0002643,2]
[384938190,1757629010438,-590.48,0.0002643,2]
[384938192,1757629017968,-1463.34,0.0002643,2]
[384938195,1757629025202,-400.0,0.0002643,2]
[384938197,1757629032411,-400.0,0.0002643,2]
[384938199,1757629039819,-400.0,0.0002643,2]
[384938203,1757629046919,-400.0,0.0002643,2]
[384938206,1757629054563,-400.0,0.0002643,2]
[384938209,1757629062036,-400.0,0.0002643,2]
[384938211,1757629069143,-1145.3,0.0002643,2]
[384938214,1757629076254,-400.0,0.0002643,2]
[384938218,1757629079106,151.3,0.00013024,2]
[384938219,1757629079553,151.3,0.0001628,2]
[384938220,1757629079795,151.3,0.00019535,2]
[384938228,1757629104258,-150.0,0.00022791,2]
[384938237,1757629133891,-1.3,0.00022791,2]
[384938238,1757629133920,-1.3,0.00025917,2]
[384938239,1757629133935,-397.4,0.00025917,2]
[384938242,1757629141733,-400.0,0.00025917,2]
[384938245,1757629148909,-400.0,0.00025917,2]
[384938246,1757629163629,-1173.42,0.000249,2]
[384938249,1757629171115,-400.0,0.000249,2]
[384938252,1757629178811,-293.09042826,0.000249,2]
[384938256,1757629206037,2000.0,0.0002739,120]
[384938257,1757629206136,2000.0,0.00025408,120]
[384938258,1757629206219,1158.38265728,0.00025792,120]
[384938266,1757629245198,180.5,0.00016438,2]
[384938277,1757629345535,-180.5,0.00022783,2]
[384938278,1757629352510,-264.26,0.000249,2]
[384938280,1757629360045,-1363.53,0.000249,2]
[384938283,1757629368026,-196.70085652,0.000249,2]
[384938285,1757629381927,-22.33436242,0.000249,2]
[384938286,1757629381955,-64.62872,0.00025917,2]
[384938287,1757629382100,-582.9834069,0.00025983,2]
[384938288,1757629389011,-200.0,0.00025983,2]
[384938290,1757629390567,-405.30222739,0.00025983,2]
[384938292,1757629410296,-1280.14780286,0.00025983,2]
[384938295,1757629417538,-400.0,0.00025983,2]
[384938296,1757629424615,-358.48219714,0.00025983,2]
[384938297,1757629431653,-1017.58560572,0.00025983,2]
[384938298,1757629455322,-301.87218856,0.00025928,2]
[384938299,1757629478419,-150.0,0.00025913,2]
[384938300,1757629478451,-15.46781144,0.00025928,2]
[384938301,1757629478512,-375.97394886,0.0002595,2]
[384938304,1757629485974,-194.53,0.0002595,2]
[384938305,1757629492920,-400.0,0.0002595,2]
[384938309,1757629507986,13865.6,0.0002,2]
[384938310,1757629508010,15000.0,0.0002,2]
[384938311,1757629508032,15000.0,0.0002,2]
[384938312,1757629508055,15000.0,0.0002,2]
[384938313,1757629508078,15000.0,0.0002,2]
[384938314,1757629508101,15000.0,0.0002,2]
[384938315,1757629508123,15000.0,0.0002,2]
[384938316,1757629508144,15000.0,0.0002,2]
[384938317,1757629508166,15000.0,0.0002,2]
[384938318,1757629508193,15000.0,0.0002,2]
[384938319,1757629508215,15000.0,0.0002,2]
[384938320,1757629508239,15000.0,0.0002,2]
[384938321,1757629508266,15000.0,0.0002,2]
[384938322,1757629508300,15000.0,0.0002,2]
[384938323,1757629508349,15000.0,0.0002,2]
[384938324,1757629508381,15000.0,0.0002,2]
[384938325,1757629508418,15000.0,0.0002,2]
[384938326,1757629508445,15000.0,0.0002,2]
[384938327,1757629508472,15000.0,0.0002,2]
[384938328,1757629508508,15000.0,0.0002,2]
[384938329,1757629508530,15000.0,0.0002,2]
[384938330,1757629508553,15000.0,0.0002,2]
[384938331,1757629508578,15000.0,0.0002,2]
[384938332,1757629508599,15000.0,0.0002,2]
[384938333,1757629508620,15000.0,0.0002,2]
[384938334,1757629508641,15000.0,0.0002,2]
[384938335,1757629508662,15000.0,0.0002,2]
[384938336,1757629508684,15000.0,0.0002,2]
[384938337,1757629508705,15000.0,0.0002,2]
[384938338,1757629508726,15000.0,0.0002,2]
[384938339,1757629508748,15000.0,0.0002,2]
[384938340,1757629508769,15000.0,0.0002,2]
[384938341,1757629508791,15000.0,0.0002,2]
[384938342,1757629508813,15000.0,0.0002,2]
[384938343,1757629508836,15000.0,0.0002,2]
[384938344,1757629508866,15000.0,0.0002,2]
[384938345,1757629508904,15000.0,0.0002,2]
[384938346,1757629508929,15000.0,0.0002,2]
[384938347,1757629508951,15000.0,0.0002,2]
[384938348,1757629508986,15000.0,0.0002,2]
[384938349,1757629509040,15000.0,0.0002,2]
[384938350,1757629509088,15000.0,0.0002,2]
[384938351,1757629509169,379563.62787596,0.0002,2]
[384938357,1757629532019,-400.0,0.0002593,2]
[384938361,1757629539625,-400.0,0.000249,2]
[384938364,1757629547200,-400.0,0.000249,2]
[384938366,1757629553605,13178.58067506,0.000191,2]
[384938367,1757629554218,-295.07562173,0.000249,2]
[384938368,1757629554242,-690.18875654,0.000249,2]
[384938371,1757629561816,-400.0,0.00025893,2]
[384938374,1757629569263,-42.03,0.00025893,2]
[384938375,1757629569403,-419.65,0.0002593,2]
[384938376,1757629575940,-400.0,0.0002593,2]
[384938379,1757629583513,-160.0,0.00025884,2]
[384938380,1757629583552,-80.0,0.0002593,2]
[384938383,1757629591050,-438.77786565,0.0002593,2]
[384938386,1757629598127,-400.0,0.0002593,2]
[384938389,1757629601932,-160.56,0.0002593,2]
[384938395,1757629621880,-652.48,0.00024,5]
[384938397,1757629629031,-590.48,0.00024,5]
[384938398,1757629630913,-270.112239,0.00024,5]
[384938401,1757629634248,-429.67725605,0.00024,5]
[384938402,1757629636620,-1463.34,0.00024,5]
[384938403,1757629637790,-166.98,0.00024,5]
[384938404,1757629639568,-266.67222739,0.00024,5]
[384938405,1757629641903,-160.69,0.00024,5]
[384938407,1757629643953,-400.0,0.00024,5]
[384938408,1757629645430,-300.7649876,0.00024,5]
[384938409,1757629647039,-152.47215894,0.00024,5]
[384938411,1757629649242,-269.25363746,0.00024,5]
[384938412,1757629651321,-201.15206351,0.00024,5]
[384938413,1757629651423,-400.0,0.00024,5]
[384938418,1757629658993,-400.0,0.00024,5]
[384938420,1757629667013,-400.0,0.00024,5]
[384938421,1757629672629,161.82,0.00025812,120]
[384938424,1757629673692,-400.0,0.00024,5]
[384938425,1757629677626,40402.72710323,0.0002,2]
[384938426,1757629681352,300.0,0.00019999,2]
[384938429,1757629688965,-1145.3,0.00024,5]
[384938434,1757629696360,-400.0,0.00021777,2]
[384938437,1757629703444,-20.0,0.00021777,2]
[384938438,1757629703489,-460.0,0.00023712,2]
[384938439,1757629710571,-308.44,0.00024,5]
[384938440,1757629717767,-488.66,0.00024,5]
[384938441,1757629724809,-400.0,0.000235,2]
[384938442,1757629732415,-255.67,0.000235,2]
[384938443,1757629740192,-244.33,0.000235,2]
[384938444,1757629747222,-711.76444605,0.000235,2]
[384938445,1757629747248,-1649.67107781,0.00024,5]
[384938447,1757629754877,-100.0,0.00024874,2]
[384938448,1757629754900,-200.0,0.00024874,2]
[384938449,1757629762021,-1725.75556569,0.000249,2]
[384938450,1757629762071,-839.60771095,0.00024991,2]
[384938451,1757629769213,-385.40198738,0.00024991,2]
[384938452,1757629769236,-3820.87486757,0.00024991,2]
[384938453,1757629776516,-1457.64,0.00024991,2]
[384938454,1757629783723,-1235.16,0.00024991,2]
[384938455,1757629790882,-150.0,0.00024991,2]
[384938456,1757629805443,-685.20478768,0.0002499,2]
[384938457,1757629813223,-150.28,0.00024981,2]
[384938458,1757629827834,-514.79521232,0.0002499,2]
[384938459,1757629827872,-149.33348755,0.0002499,2]
[384938481,1757629831771,-578.1981307,0.00024981,2]
[384938482,1757629831784,-183.2018693,0.00024981,2]
[384938483,1757629831793,-150.66651245,0.0002499,2]
[384938484,1757629831802,-850.0,0.0002499,2]
[384938485,1757629831812,-2177.19532659,0.00024991,2]
[384938486,1757629831823,-493.61014242,0.00024991,2]
[384938487,1757629831835,-7523.04869115,0.00024991,2]
[384938488,1757629831850,-24133.26523316,0.00024991,2]
[384938489,1757629831862,-54921.29115962,0.00024991,2]
[384938490,1757629831874,-1200.652997,0.00024991,2]
[384938491,1757629831886,-5403.1339754,0.00024991,2]
[384938492,1757629831897,-511.10735089,0.00024991,2]
[384938493,1757629831920,-357.0363872,0.00024991,2]
[384938494,1757629831931,-1346.70969132,0.00024991,2]
[384938495,1757629831943,-2921.71855915,0.00024991,2]
[384938496,1757629831954,-1264.29844031,0.00024991,2]
[384938497,1757629832127,-1812.09125569,0.00024991,2]
[384938498,1757629832188,-5651.61783913,0.00024991,2]
[384938499,1757629832327,-602.45166163,0.00024991,2]
[384938500,1757629832340,-797.84386419,0.00024991,2]
[384938501,1757629832484,-32544.12024088,0.00024991,2]
[384938502,1757629832503,-109182.01533901,0.00024991,2]
[384938503,1757629832515,-3406.12063364,0.00024991,2]
[384938504,1757629832526,-1592.63010587,0.00024991,2]
[384938717,1757629837894,-4968.24669367,0.00024991,2]
[384938718,1757629837914,-47503.84454108,0.00024991,2]
[384938719,1757629837924,-500.0,0.00025267,2]
[384938720,1757629837934,-500.0,0.00025267,2]
[384938721,1757629837943,-500.0,0.00025267,2]
[384938722,1757629837953,-500.0,0.00025267,2]
[384938723,1757629837962,-500.0,0.00025267,2]
[384938724,1757629837972,-528.18669643,0.00025267,2]
[384938725,1757629837981,-339.28890976,0.00025267,2]
[384938726,1757629837991,-500.0,0.00025267,2]
[384938727,1757629838000,-289.35,0.00025278,2]
[384938729,1757629838010,-200.0,0.00025295,2]
[384938730,1757629838019,-3988.94,0.0002531,2]
[384938731,1757629838029,-300.0,0.00025447,2]
[384938732,1757629838038,-111387.1437963,0.00025748,2]
[384938733,1757629838048,-747.47,0.00025812,2]
[384938734,1757629838058,-9999.99,0.00025812,2]
[384938736,1757629838067,-475.73,0.00025812,2]
[384938738,1757629838076,-10025.02,0.00025812,20]
[384938740,1757629838087,-1000.0,0.00025815,2]
[384938741,1757629838097,-500.0,0.00025815,2]
[384938744,1757629838107,-500.0,0.00025815,2]
[384938746,1757629838116,-150.99,0.0002582,2]
[384938748,1757629838127,-273.04,0.0002582,2]
[384938750,1757629838136,-250.0,0.0002585,2]
[384938752,1757629838146,-761.4,0.0002592,2]
[384938754,1757629838156,-3449.79213435,0.0002593,2]
[384938756,1757629838165,-3499.71,0.0002593,2]
[384938758,1757629838176,-499.99,0.0002593,2]
[384938760,1757629838186,-5294.64,0.0002593,2]
[384938762,1757629838195,-44592.99,0.0002593,2]
[384938764,1757629838205,-999.99,0.0002593,2]
[384938766,1757629838214,-267.554,0.00025947,2]
[384938767,1757629838224,-373.71586694,0.0002595,2]
[384938768,1757629838233,-88.22875999,0.00025983,2]
[384938769,1757629838243,-168.0,0.00026,2]
[384938771,1757629838252,-3367.4471573,0.00026,2]
[384938772,1757629838262,-220.0,0.00026,2]
[384938773,1757629838271,-500.0,0.00026041,2]
[384938775,1757629838285,-171.37795291,0.00026041,2]
[384938776,1757629838294,-262.946034,0.00026041,2]
[384938779,1757629838303,-595.46,0.00026043,2]
[384938781,1757629838312,-150.0,0.00026047,7]
[384938782,1757629838323,-263.89,0.00026047,3]
[384938783,1757629838333,-1000.0,0.00026047,2]
[384938784,1757629838343,-920.22,0.00026047,2]
[384938785,1757629838354,-171.43,0.00026047,2]
[384938786,1757629838363,-151.3,0.00026047,2]
[384938787,1757629838373,-277.0,0.00026189,2]
[384938788,1757629838383,-3367.0074437,0.00026235,2]
[384938789,1757629838392,-168.0,0.00026341,2]
[384938790,1757629838402,-1500.0,0.00026363,2]
[384938791,1757629838412,-305.80954284,0.000264,2]
[384938792,1757629838421,-300.0,0.000264,2]
[384938793,1757629838431,-6355.91101448,0.0002643,2]
[384938794,1757629838440,-385.64021499,0.00026438,7]
[384938795,1757629838450,-1392.74,0.00026485,2]
[384938796,1757629838460,-289.35,0.00026542,2]
[384938797,1757629838470,-212.89373682,0.00026602,2]
[384938798,1757629838479,-160.0,0.00026602,2]
[384938799,1757629838489,-160.0,0.00026602,2]
[384938800,1757629838498,-160.0,0.00026602,2]
[384938801,1757629838507,-515.37529716,0.00026602,2]
[384938802,1757629838517,-69874.7381208,0.00026614,2]
[384938803,1757629838526,-1818.08221307,0.00026633,2]
[384938804,1757629838536,-1125.8890312,0.00026655,2]
[384938805,1757629838545,-160.0,0.00026674,2]
[384938806,1757629838555,-322.6107,0.00026674,2]
[384938807,1757629838564,-500.0,0.00026674,2]
[384938808,1757629838574,-500.0,0.00026674,2]
[384938809,1757629838583,-500.0,0.00026674,2]
[384938810,1757629838593,-500.0,0.00026674,2]
[384938811,1757629838604,-500.0,0.00026674,2]
[384938812,1757629838613,-500.0,0.00026674,2]
[384938813,1757629838623,-179.73237834,0.00026674,2]
[384938814,1757629838632,-151.0,0.00026674,2]
[384938815,1757629838641,-257.91778498,0.00026674,2]
[384938816,1757629838651,-168.0,0.0002668,2]
[384938817,1757629838660,-37277.69552826,0.0002669,2]
[384938818,1757629838670,-837.1131301,0.00026693,2]
[384938819,1757629838679,-500.0,0.00026729,2]
[384938820,1757629838689,-1101.62942231,0.00026763,10]
[384938821,1757629838698,-14050.7936092,0.00026764,2]
[384938822,1757629838708,-1143.97314336,0.0002678,3]
[384938823,1757629838718,-500.0,0.00026784,2]
[384938824,1757629838727,-1818.08221302,0.00026829,2]
[384938825,1757629838737,-500.0,0.00026839,2]
[384938826,1757629838747,-1876.69399392,0.00026856,2]
[384938827,1757629838757,-157.49487012,0.000269,2]
[384938828,1757629838766,-157.49487011,0.000269,2]
[384938829,1757629838776,-157.49487011,0.000269,2]
[384938830,1757629838786,-1000.0,0.00026911,2]
[384938831,1757629838796,-837.1131301,0.00026916,2]
[384938832,1757629838806,-157.49487011,0.0002697,2]
[384938833,1757629838816,-15591.1615072,0.00026976,2]
[384938834,1757629838826,-197.0,0.00027,7]
[384938835,1757629838836,-312.38378782,0.00027,15]
[384938836,1757629838846,-1818.08221302,0.00027024,2]
[384938837,1757629838856,-251.2197998,0.00027026,2]
[384938838,1757629838866,-769.69149733,0.00027037,2]
[384938839,1757629838875,-300.0,0.00027073,2]
[384938840,1757629838885,-837.1131301,0.00027163,2]
[384938841,1757629838895,-215.0,0.0002718,2]
[384938842,1757629838904,-1200.0,0.00027195,2]
[384938843,1757629838915,-1552.4757,0.00027197,2]
[384938844,1757629838924,-1114.4711,0.00027197,2]
[384938845,1757629838934,-1818.08221302,0.0002722,2]
[384938846,1757629838944,-224.55620905,0.00027222,2]
[384938847,1757629838954,-1500.0,0.00027269,2]
[384938848,1757629838964,-375.07070487,0.0002728,2]
[384938849,1757629838974,-1368.5217,0.00027287,2]
[384938850,1757629838984,-1000.0,0.00027287,2]
[384938851,1757629838994,-2500.0,0.00027287,2]
[384938852,1757629839004,-375.07070485,0.00027289,2]
[384938853,1757629839014,-152.5855867,0.0002729,2]
[384938854,1757629839025,-7077.3245,0.00027297,2]
[384938855,1757629839034,-5000.0,0.00027297,2]
[384938856,1757629839044,-760.82163944,0.00027297,2]
[384938857,1757629839055,-9235.47543259,0.00027297,2]
[384938858,1757629839065,-375.07070485,0.00027297,2]
[384938859,1757629839075,-5536.43852764,0.00027362,2]
[384938860,1757629839085,-500.0,0.00027373,2]
[384938861,1757629839095,-600.3813252,0.00027373,2]
[384938862,1757629839105,-500.0,0.00027373,2]
[384938863,1757629839115,-500.0,0.00027373,2]
[384938864,1757629839124,-507.34133051,0.00027373,2]
[384938865,1757629839134,-502.3784984,0.00027373,2]
[384938866,1757629839144,-500.0,0.00027373,2]
[384938867,1757629839153,-500.0,0.00027373,2]
[384938868,1757629839162,-505.31612321,0.00027373,2]
[384938869,1757629839173,-500.0,0.00027373,2]
[384938870,1757629839183,-500.0,0.00027373,2]
[384938871,1757629839193,-500.0,0.00027373,2]
[384938872,1757629839202,-500.0,0.00027373,2]
[384938873,1757629839211,-500.0,0.00027373,2]
[384938874,1757629839221,-500.0,0.00027373,2]
[384938875,1757629839231,-500.0,0.00027373,2]
[384938876,1757629839240,-500.0,0.00027373,2]
[384938877,1757629839249,-500.0,0.00027373,2]
[384938878,1757629839259,-500.0,0.00027373,2]
[384938879,1757629839268,-460.10382192,0.00027373,2]
[384938880,1757629839281,-506.53423052,0.00027373,2]
[384938881,1757629839291,-500.0,0.00027373,2]
[384938882,1757629839300,-500.0,0.00027373,2]
[384938883,1757629839309,-166.54628054,0.00027373,2]
[384938884,1757629839319,-500.0,0.00027373,2]
[384938885,1757629839329,-159.66864854,0.00027373,2]
[384938886,1757629839338,-500.0,0.00027373,2]
[384938887,1757629839348,-500.0,0.00027373,2]
[384938888,1757629839359,-154.68771041,0.00027373,2]
[384938889,1757629839369,-159.71813571,0.00027373,2]
[384938890,1757629839379,-500.0,0.00027373,2]
[384938891,1757629839390,-500.0,0.00027373,2]
[384938892,1757629839400,-500.0,0.00027373,2]
[384938893,1757629839409,-500.0,0.00027373,2]
[384938894,1757629839419,-317.40848462,0.00027373,2]
[384938895,1757629839428,-165.63076076,0.00027373,2]
[384938896,1757629839438,-216.24794429,0.00027373,2]
[384938897,1757629839449,-500.0,0.00027373,2]
[384938898,1757629839459,-205.94841784,0.00027373,2]
[384938899,1757629839469,-163.86353349,0.00027373,2]
[384938900,1757629839479,-500.0,0.00027373,2]
[384938901,1757629839489,-513.40051879,0.00027373,2]
[384938902,1757629839499,-322.95335104,0.00027373,2]
[384938903,1757629839508,-301.34904329,0.00027373,2]
[384938904,1757629839518,-156.50584374,0.00027373,2]
[384938905,1757629839527,-500.0,0.00027373,2]
[384938906,1757629839537,-500.0,0.00027373,2]
[384938907,1757629839548,-162.65859504,0.00027373,2]
[384938908,1757629839558,-500.0,0.00027373,2]
[384938909,1757629839568,-500.0,0.00027373,2]
[384938910,1757629839578,-81269.0376698,0.00027377,2]
[384938911,1757629839588,-5536.43,0.0002738,2]
[384938912,1757629839598,-1101.62942231,0.00027386,10]
[384938913,1757629839608,-1101.6294223,0.00027386,10]
[384938914,1757629839617,-117840.104621,0.00027387,2]
[384938915,1757629839628,-2906.20437174,0.00027387,2]
[384938916,1757629839638,-553.9981375,0.00027387,2]
[384938917,1757629839648,-151.0,0.00027394,7]
[384938918,1757629839658,-800.0,0.00027396,7]
[384938919,1757629839668,-500.0,0.00027396,7]
[384938920,1757629839678,-2500.0,0.00027396,7]
[384938921,1757629839689,-312.69,0.00027396,2]
[384938922,1757629839699,-999.98,0.00027396,2]
[384938923,1757629839710,-400.0,0.00027397,7]
[384938924,1757629839720,-400.0,0.00027397,7]
[384938925,1757629839729,-400.0,0.00027397,7]
[384938926,1757629839739,-400.0,0.00027397,7]
[384938927,1757629839748,-391.24549229,0.00027397,7]
[384938928,1757629839758,-400.0,0.00027397,7]
[384938929,1757629839768,-400.0,0.00027397,7]
[384938930,1757629839777,-400.0,0.00027397,7]
[384938931,1757629839786,-400.0,0.00027397,7]
[384938932,1757629839796,-400.0,0.00027397,7]
[384938933,1757629839805,-408.24127143,0.00027397,7]
[384938934,1757629839814,-400.0,0.00027397,7]
[384938935,1757629839824,-400.0,0.00027397,7]
[384938936,1757629839834,-400.0,0.00027397,7]
[384938937,1757629839845,-400.0,0.00027397,7]
[384938938,1757629839855,-400.0,0.00027397,7]
[384938939,1757629839865,-400.0,0.00027397,7]
[384938940,1757629839875,-400.0,0.00027397,7]
[384938941,1757629839884,-400.0,0.00027397,7]
[384938942,1757629839894,-400.0,0.00027397,2]
[384938943,1757629839904,-400.0,0.00027397,7]
[384938944,1757629839914,-400.0,0.00027397,7]
[384938945,1757629839924,-400.0,0.00027397,7]
[384938946,1757629839934,-242.142077,0.00027397,7]
[384938947,1757629839943,-400.0,0.00027397,7]
[384938948,1757629839953,-500.0,0.00027397,7]
[384938949,1757629839964,-400.0,0.00027397,7]
[384938950,1757629839973,-400.0,0.00027397,7]
[384938951,1757629839983,-400.0,0.00027397,7]
[384938952,1757629839992,-400.0,0.00027397,7]
[384938953,1757629840003,-400.0,0.00027397,7]
[384938954,1757629840012,-400.0,0.00027397,7]
[384938955,1757629840022,-400.0,0.00027397,7]
[384938956,1757629840032,-400.0,0.00027397,7]
[384938957,1757629840041,-403.95,0.00027397,7]
[384938958,1757629840050,-658.63,0.00027397,7]
[384938959,1757629840060,-400.0,0.00027397,7]
[384938960,1757629840070,-400.0,0.00027397,7]
[384938961,1757629840080,-405.73354024,0.00027397,7]
[384938962,1757629840089,-470.95,0.00027397,7]
[384938963,1757629840099,-1003.28,0.00027397,7]
[384938964,1757629840109,-400.0,0.00027397,7]
[384938965,1757629840119,-400.0,0.00027397,7]
[384938966,1757629840128,-400.0,0.00027397,7]
[384938967,1757629840138,-400.0,0.00027397,7]
[384938968,1757629840147,-400.0,0.00027397,7]
[384938969,1757629840157,-400.0,0.00027397,7]
[384938970,1757629840166,-400.0,0.00027397,7]
[384938971,1757629840176,-400.0,0.00027397,7]
[384938972,1757629840281,-400.0,0.00027397,7]
[384938973,1757629840292,-564.33,0.00027397,7]
[384938974,1757629840302,-400.0,0.00027397,7]
[384938975,1757629840311,-400.0,0.00027397,7]
[384938976,1757629840320,-400.0,0.00027397,7]
[384938977,1757629840330,-400.0,0.00027397,7]
[384938978,1757629840340,-400.0,0.00027397,7]
[384938979,1757629840350,-400.0,0.00027397,7]
[384938980,1757629840360,-409.41282707,0.00027397,7]
[384938981,1757629840371,-400.0,0.00027397,7]
[384938982,1757629840380,-400.0,0.00027397,7]
[384938983,1757629840390,-400.0,0.00027397,7]
[384938984,1757629840400,-400.0,0.00027397,7]
[384938985,1757629840409,-400.0,0.00027397,7]
[384938986,1757629840418,-400.0,0.00027397,7]